[Event "2nd Cambridge Open 2024"]
[Site "Cambridge"]
[Date "2024.02.23"]
[Round "7.1"]
[White "Willow, Jonah B"]
[Black "Tiviakov, Sergei"]
[Result "0-1"]
[ECO "C10"]
[WhiteElo "2434"]
[BlackElo "2537"]
[Annotator "TA"]
[PlyCount "92"]
[EventDate "2024.02.18"]
[EventType "swiss"]
[EventCountry "ENG"]
[SourceTitle "playchess.com"]
[Source "ChessBase"]
[SourceQuality "1"]
[TimeControl "5400+30"]

{[%evp 23,92,0,0,0,0,-26,12,0,51,39,72,-76,17,0,0,-31,-36,-27,-23,-34,-28,-37,-25,-19,-10,-13,0,-2,0,0,0,-54,-61,-57,-59,-60,-58,-50,-27,-68,0,0,0,-15,-7,-66,-61,-53,-51,-138,-97,-139,-95,-399,-148,-302,-175,-183,-179,-368,-362,-497,-487,-470,-444,-493,-504,-525,-493,-533,-510]} 1. e4 {[%emt 0:00:03]} e6 {[%emt 0:00:04]} 2. d4 {[%emt 0:00:05]} d5 {[%emt 0:00:05]} 3. Nc3 {[%emt 0:00:19]} dxe4 {[%emt 0:00:05]} 4. Nxe4 {[%emt 0:00:05]} Nd7 {[%emt 0:00:04]} 5. Nf3 {[%emt 0:00:13]} Ngf6 {[%emt 0:00:06]} 6. Nxf6+ {[%emt 0:00:14]} Nxf6 {[%emt 0:00:06]} 7. c3 {[%emt 0:00:33] 7.c3 is setting a new trend.} Be7 {[%emt 0:05:04]} 8. Bd3 {[%emt 0:01:02]} b6 {[%emt 0:00:14] C10: French with 3 Nc3: Unusual Black 3rd moves and 3...dxe4.} 9. Ne5 {[%emt 0:15:23]} Bb7 {[%emt 0:00:06]} 10. Qa4+ {[%emt 0:04:55]} c6 {[%emt 0:03:04]} 11. Be3 $146 {[%emt 0:07:29]} ({Predecessor:} 11. Bf4 a6 12. O-O b5 13. Qc2 c5 14. dxc5 Bxc5 15. Rad1 Qb6 16. a4 O-O 17. Bg5 {1-0 Palac,M (2485)-Mufic,G (2335) CRO-chT Pula 1993 (5)}) 11... Qc7 {[%emt 0:02:42]} 12. O-O-O {[%emt 0:03:19]} O-O {[%emt 0:03:33]} 13. Qc2 {[%emt 0:04:57]} c5 {[%emt 0:00:43]} 14. Rhe1 {[%emt 0:01:59]} h6 {[%emt 0:19:20]} 15. Qe2 {[%emt 0:09:40]} cxd4 {[%emt 0:03:10]} (15... Bxg2 $2 16. Rg1 Qb7 17. f3 $18) (15... Nd5 $11) 16. Bxd4 $14 {[%emt 0:00:13]} Rad8 {[%emt 0:00:17]} 17. Bc4 {[%emt 0:12:09]} (17. Bc2 $16) 17... Bd5 {[%emt 0:01:20]} (17... Bxg2 $17 18. Kb1 Be4+ 19. Bd3 Bxd3+ 20. Rxd3 Nd5) 18. Bxd5 {[%emt 0:00:26]} Rxd5 {[%emt 0:00:05]} 19. Qc4 {[%emt 0:14:22]} Bc5 {[%emt 0:02:53]} 20. Bxc5 {[%emt 0:08:21]} Rxc5 {[%emt 0:00:07]} 21. Qe2 {[%emt 0:00:22]} b5 {[%emt 0:00:49]} 22. Kb1 {[%emt 0:02:39]} a5 {[%emt 0:00:20]} 23. Rd4 {[%emt 0:06:39]} Rc8 {[%emt 0:05:10]} 24. f4 {[%emt 0:01:38]} Nd5 {[%emt 0:00:27]} 25. Qd2 $1 {[%emt 0:01:27]} f6 {[%emt 0:24:21]} 26. Nd3 $1 {[%emt 0:02:29]} Rc6 {[%emt 0:00:18]} 27. f5 {[%emt 0:00:34]} (27. a3 $11) 27... b4 $1 $15 {[%emt 0:00:14]} 28. c4 {[%emt 0:00:41]} (28. cxb4 $2 Rc2 (28... Qxh2 $2 29. fxe6 Qh5 30. g4 $18) 29. Qd1 Rxb2+ (29... Qxh2 $2 30. fxe6 Qxg2 31. e7 $18) 30. Nxb2 Nc3+ (30... Nxb4 $2 31. Rc4 $18) 31. Ka1 Nxd1 32. Rdxd1 e5 (32... exf5 $2 33. bxa5 Qxh2 34. Re2 $19) (32... axb4 $2 33. fxe6 Qc3 34. h4 $19) 33. bxa5 Qxa5 $19) 28... Rxc4 {[%emt 0:02:13]} 29. Rxc4 {[%emt 0:00:04]} Qxc4 {[%emt 0:00:04]} 30. fxe6 {[%emt 0:00:56]} Rd8 {[%emt 0:01:21]} 31. Qe2 {[%emt 0:01:11]} b3 {[%emt 0:02:32]} ({Black should try} 31... Ne7 $15 32. Nc1 Qd5) 32. axb3 $11 {[%emt 0:01:11]} Qxb3 {[%emt 0:00:13]} 33. Qc2 {[%emt 0:00:23]} Qb5 {[%emt 0:00:41]} (33... Qxc2+ {simplifies} 34. Kxc2 Rb8 35. Ra1 Rb5) 34. Nc1 {[%emt 0:00:22]} ({Better is} 34. g3 $11) 34... a4 $15 {[%emt 0:01:00]} 35. Qd3 {[%emt 0:00:48]} Qb6 {[%emt 0:01:58]} 36. Na2 {[%emt 0:00:46]} (36. g3 $15) 36... Ne7 {[%emt 0:00:19]} 37. Qa3 {[%emt 0:00:26]} Qf2 {[%emt 0:01:18]} 38. Qb4 $2 {[%emt 0:00:30][%mdl 8192]} (38. Rc1 $17 Rb8 39. Rc2 Qe1+ 40. Nc1) 38... Rd4 $2 {[%emt 0:03:39]} (38... a3 $19 {Strongly threatening ...Nd5.} 39. Rc1 (39. bxa3 $2 {perishes.} Rd2 $19) 39... Qf5+ 40. Ka1 axb2+ (40... Qxe6 41. Qxa3 Rd2 42. Qb4 $19) 41. Qxb2 Qxe6) 39. Qc3 $2 {[%emt 0:00:33]} (39. Qb8+ $17 Kh7 40. Qg3 Qf5+ 41. Ka1) 39... Rg4 {[%emt 0:00:06]} (39... a3 $142 40. Rc1 (40. bxa3 $2 {too greedy.} Rd2 $19) 40... Qf5+ 41. Ka1 axb2+ 42. Qxb2 Re4) 40. g3 $19 {[%emt 0:00:21]} Qxh2 {[%emt 0:00:23]} 41. Rd1 $2 {[%emt 0:00:38]} (41. Re3) 41... Rxg3 $19 {[%emt 0:01:07]} ({Don't play} 41... Qxg3 42. Rd7 Qxc3 43. Nxc3 $19) 42. Qc7 {[%emt 0:00:22]} a3 {[%emt 0:01:05]} 43. Qb8+ {[%emt 0:00:17]} Kh7 {[%emt 0:00:05]} 44. bxa3 {[%emt 0:00:04]} Qh3 {[%emt 0:00:12]} 45. Qc7 {[%emt 0:00:59]} Rxa3 {[%emt 0:00:28]} 46. Qc2+ {[%emt 0:00:36]} f5 {[%emt 0:00:19]} 0-1

[Event "2nd Cambridge Open 2024"]
[Site "Cambridge"]
[Date "2024.02.23"]
[Round "7.2"]
[White "Adams, Michael"]
[Black "Sonis, Francesco"]
[Result "1/2-1/2"]
[ECO "C88"]
[WhiteElo "2674"]
[BlackElo "2573"]
[Annotator "TA"]
[PlyCount "159"]
[EventDate "2024.02.18"]
[EventType "swiss"]
[EventCountry "ENG"]
[SourceTitle "playchess.com"]
[Source "ChessBase"]
[SourceQuality "1"]
[TimeControl "5400+30"]

{[%evp 88,159,8,8,8,8,32,34,29,30,41,40,38,34,139,139,532,8,8,8,8,8,8,8,8,13,14,14,14,14,14,14,21,21,39,39,60,8,41,8,8,8,8,8,8,8,8,8,39,8,8,0,8,8,8,8,8,8,8,8,8,8,8,8,8,8,8,8,8,8,8,8,8,8]} 1. e4 {[%emt 0:00:03]} e5 {[%emt 0:00:16]} 2. Nf3 {[%emt 0:00:07]} Nc6 {[%emt 0:00:08]} 3. Bb5 {[%emt 0:00:07]} a6 {[%emt 0:00:10]} 4. Ba4 {[%emt 0:00:06]} Nf6 {[%emt 0:00:33]} 5. O-O {[%emt 0:00:24]} Be7 {[%emt 0:01:40]} 6. d3 {[%emt 0:01:09]} b5 {[%emt 0:02:39]} 7. Bb3 {[%emt 0:00:08]} d6 {[%emt 0:00:07]} 8. a4 {[%emt 0:03:08]} Rb8 {[%emt 0:03:26]} 9. axb5 {[%emt 0:06:33]} axb5 {[%emt 0:00:06]} 10. Re1 {[%emt 0:00:46]} O-O {[%emt 0:00:27]} 11. Nbd2 {[%emt 0:00:23]} Nb4 {[%emt 0:22:15]} 12. Nf1 {[%emt 0:02:44]} c5 {[%emt 0:00:05]} 13. c3 {[%emt 0:03:35]} Nc6 {[%emt 0:00:06]} 14. Ne3 {[%emt 0:00:26]} Be6 {[%emt 0:08:13]} 15. Nd5 {[%emt 0:03:53]} Qd7 {[%emt 0:09:16]} 16. Bg5 {[%emt 0:06:19]} Bxd5 {[%emt 0:13:27]} 17. Bxd5 {[%emt 0:01:25]} Nxd5 {[%emt 0:08:21]} 18. exd5 {[%emt 0:01:50]} Nd8 {[%emt 0:00:04]} 19. Bxe7 {[%emt 0:09:26]} Qxe7 {[%emt 0:00:04]} 20. d4 {[%emt 0:03:36]} f6 {[%emt 0:01:01]} 21. dxc5 {[%emt 0:05:23]} dxc5 {[%emt 0:00:05]} 22. Nd2 {[%emt 0:08:54]} Nf7 {[%emt 0:02:22]} 23. Ne4 {[%emt 0:07:53]} Rfd8 {[%emt 0:00:35]} 24. Qg4 {[%emt 0:04:49]} Rxd5 {[%emt 0:08:38]} 25. Ra7 {[%emt 0:01:01]} f5 {[%emt 0:01:24]} 26. Rxe7 {[%emt 0:05:57]} fxg4 {[%emt 0:00:03]} 27. Ra1 {[%emt 0:06:16]} Nh6 {[%emt 0:01:43]} 28. g3 {[%emt 0:02:26]} Nf5 {[%emt 0:01:19]} 29. Rc7 {[%emt 0:00:06]} c4 {[%emt 0:00:11]} 30. Kg2 {[%emt 0:00:27]} Rf8 {[%emt 0:04:00]} 31. Rc5 {[%emt 0:06:45]} Rxc5 32. Nxc5 {[%emt 0:00:02]} Rd8 {[%emt 0:00:53]} 33. Ne4 {[%emt 0:00:06]} h6 {[%emt 0:00:55]} 34. Ra6 {[%emt 0:01:48]} Rd5 {[%emt 0:00:45]} 35. Rb6 {[%emt 0:02:36]} Kh7 {[%emt 0:02:53]} 36. h3 {[%emt 0:01:06]} gxh3+ {[%emt 0:00:17]} 37. Kxh3 {[%emt 0:00:06]} Kg8 {[%emt 0:00:28]} 38. Kg4 {[%emt 0:00:40]} Ne7 {[%emt 0:00:07]} 39. Rd6 {[%emt 0:01:36]} Kf8 {[%emt 0:03:05]} 40. Rxd5 {[%emt 0:00:40]} Nxd5 {[%emt 0:00:04]} 41. Kf5 {[%emt 0:00:06]} Nb6 {[%emt 0:01:54]} 42. Nd6 {[%emt 0:00:14]} Na4 {[%emt 0:00:05]} 43. Nxb5 {[%emt 0:00:17]} Nxb2 {[%emt 0:00:04]} 44. f3 {[%emt 0:00:49]} Nd3 {[%emt 0:00:19]} 45. Nd6 {[%emt 0:00:15]} Nc1 {[%emt 0:05:19]} 46. Kxe5 {[%emt 0:00:14]} Ne2 {[%emt 0:00:04]} 47. Ne4 {[%emt 0:00:04]} Ke7 {[%emt 0:01:22]} 48. Kd5 {[%emt 0:01:21]} g5 {[%emt 0:01:26]} 49. g4 {[%emt 0:00:28]} Ng1 {[%emt 0:01:34]} 50. Nd2 {[%emt 0:00:07]} (50. Kxc4 Nxf3 51. Kd5 Nh2 $11) 50... Kf6 {[%emt 0:00:36]} (50... Ne2 $1 $14) 51. Kxc4 $16 {[%emt 0:00:47]} ({Stronger than} 51. Nxc4 Ne2 $15) 51... Ke5 $2 {[%emt 0:00:03][%mdl 8192] [#]} (51... Ne2 $16 {is tougher.}) 52. Kd3 $2 {[%emt 0:00:24]} (52. Kb5 $1 $18) 52... Nh3 $1 $11 {[%emt 0:00:04]} (52... Kf4 53. c4 Ke5 (53... Nxf3 54. Nxf3 h5 55. gxh5 g4 56. h6 gxf3 57. h7 f2 58. Ke2) 54. Kc3 $18) 53. Ke3 {[%emt 0:01:31]} Nf4 {[%emt 0:00:11]} 54. Ne4 {[%emt 0:00:49]} Kd5 {[%emt 0:00:43]} 55. Kd2 {[%emt 0:01:10]} Ke5 {[%emt 0:00:56]} 56. Ng3 {[%emt 0:00:19]} Kd5 {[%emt 0:00:25]} 57. Ne2 {[%emt 0:00:57]} Ng6 {[%emt 0:00:56]} 58. Ke3 {[%emt 0:00:12]} Ne5 {[%emt 0:00:19]} 59. Ng3 {[%emt 0:01:21]} Nc4+ {[%emt 0:00:13]} 60. Ke2 {[%emt 0:00:09]} Nd6 {[%emt 0:00:39]} 61. Kd3 {[%emt 0:00:12]} Ke5 {[%emt 0:00:22]} 62. Nh5 {[%emt 0:00:36]} (62. Ne4 $14 Nc8 63. Kc4) 62... Nf7 {[%emt 0:01:04]} 63. c4 {[%emt 0:00:52]} Nd8 {[%emt 0:00:15]} 64. Ke3 {[%emt 0:01:00]} (64. c5 $5 Kd5 $8 65. Nf6+ Kxc5 66. Ke4 $11) 64... Nc6 {[%emt 0:00:27]} 65. Ng3 {[%emt 0:02:11]} Na5 {[%emt 0:00:15]} 66. c5 {[%emt 0:00:04]} Nc6 {[%emt 0:00:21]} 67. Ne4 {[%emt 0:01:00]} Kd5 {[%emt 0:01:01]} 68. Nd6 {[%emt 0:01:07]} Ne5 {[%emt 0:00:42]} 69. Ne4 {[%emt 0:01:39]} Nd7 {[%emt 0:00:21]} 70. c6 {[%emt 0:00:00]} Kxc6 {[%emt 0:00:03]} 71. Kd4 {[%emt 0:00:00]} Nf8 {[%emt 0:00:47]} 72. Ke5 {[%emt 0:00:00]} Ng6+ {[%emt 0:00:03]} 73. Kf6 {[%emt 0:00:00]} Nh4 {[%emt 0:00:14]} 74. Nd2 {[%emt 0:00:03]} Kd5 {[%emt 0:00:05]} 75. Kg7 {[%emt 0:00:40]} Ke5 {[%emt 0:00:04]} 76. Kxh6 {[%emt 0:00:03]} Kf4 {[%emt 0:00:04]} 77. Kh5 $1 {[%emt 0:00:03]} Ng2 {[%emt 0:00:33]} 78. Ne4 {[%emt 0:00:05]} Kxf3 {[%emt 0:00:06]} 79. Nxg5+ {[%emt 0:00:03]} Kf4 {[%emt 0:00:19]} 80. Nf7 {[%emt 0:00:24]} 1/2-1/2

[Event "2nd Cambridge Open 2024"]
[Site "Cambridge"]
[Date "2024.02.23"]
[Round "7.3"]
[White "Haubro, Martin"]
[Black "Royal, Shreyas"]
[Result "1-0"]
[ECO "B67"]
[WhiteElo "2418"]
[BlackElo "2459"]
[Annotator "TA"]
[PlyCount "97"]
[EventDate "2024.02.18"]
[EventType "swiss"]
[EventCountry "ENG"]
[SourceTitle "playchess.com"]
[Source "ChessBase"]
[SourceQuality "1"]
[TimeControl "5400+30"]

{[%evp 33,97,45,167,181,135,83,92,78,88,110,112,40,94,94,94,97,118,130,125,128,284,168,178,147,161,136,265,313,315,310,329,305,279,299,400,258,464,458,444,475,399,275,297,282,264,238,599,553,693,670,844,813,838,802,1853,1581,1824,1359,2514,1131,2549,2628,2618,2380,29982,29983]} 1. e4 {[%emt 0:00:02]} c5 {[%emt 0:00:08]} 2. Nf3 {[%emt 0:00:03]} d6 {[%emt 0:00:06]} 3. d4 {[%emt 0:00:03]} cxd4 {[%emt 0:00:06]} 4. Nxd4 {[%emt 0:00:03]} Nf6 {[%emt 0:00:08]} 5. Nc3 {[%emt 0:00:03]} Nc6 {[%emt 0:00:07]} 6. Bg5 {[%emt 0:00:15]} e6 {[%emt 0:00:07]} 7. Qd2 {[%emt 0:00:02]} a6 {[%emt 0:00:06]} 8. O-O-O {[%emt 0:00:27]} Bd7 {[%emt 0:00:07]} 9. Kb1 {[%emt 0:00:47]} Nxd4 {[%emt 0:00:38] is now debated instead of 9...Be7. B67: Sicilian: Richter-Rauzer: 7...a6 8 0-0-0 Bd7, lines without 9 f4 Be7.} 10. Qxd4 {[%emt 0:00:06]} Be7 {[%emt 0:00:06]} 11. f3 {[%emt 0:00:40]} Qc7 {[%emt 0:01:13]} 12. Qd2 {[%emt 0:03:31]} b5 {[%emt 0:00:17]} 13. g4 {[%emt 0:00:15]} h5 {[%emt 0:05:52]} 14. gxh5 {[%emt 0:00:06]} Nxh5 {[%emt 0:00:11]} 15. h4 {[%emt 0:00:09]} Rc8 {[%emt 0:04:27]} 16. Bd3 {[%emt 0:01:28]} g6 $146 {[%emt 0:03:18]} ({Predecessor:} 16... Nf6 17. Ne2 e5 18. f4 Bg4 19. Rhg1 Bxe2 20. Qxe2 Nh5 21. fxe5 dxe5 22. Bc1 Bf6 {½-½ Giri,A (2772)-Warmerdam,M (2602) NED-ch KO Utrecht 2023 (3.2)}) 17. f4 {[%emt 0:24:28]} Bxg5 {[%emt 0:18:51]} (17... f6 $2 18. e5 Kf7 19. exf6 $18 (19. Bxg6+ Kxg6 20. exf6 Nxf6 $11)) (17... b4 $1 $14 18. Ne2 Bb5) 18. hxg5 $18 {[%emt 0:01:17]} (18. fxg5 Qc5 $11) 18... Qc5 {[%emt 0:00:05] [#]} 19. e5 {[%emt 0:10:43]} (19. Ne2 $142 $1 {[%mdl 512]}) 19... Bc6 {[%emt 0:04:04]} 20. Be4 {[%emt 0:07:30]} dxe5 {[%emt 0:07:26]} 21. Bxc6+ {[%emt 0:09:11]} Qxc6 {[%emt 0:00:05] [#]} 22. Ne4 {[%emt 0:00:06]} (22. fxe5 $1 $16 {[%cal Oc3e4][%mdl 512]} O-O (22... Kf8 23. Qf2) 23. Rde1) 22... Qxe4 {[%emt 0:12:19]} (22... O-O $14 23. Nf6+ Kg7 (23... Nxf6 $2 24. gxf6 Rcd8 25. Qxd8 $18) 24. fxe5 (24. Nxh5+ gxh5 25. Qe2 exf4 $11) 24... Rh8) 23. Qd7+ $16 {[%emt 0:00:04]} Kf8 {[%emt 0:00:05]} 24. Qxc8+ {[%emt 0:00:04]} Kg7 {[%emt 0:00:04]} 25. Qxa6 {[%emt 0:09:41]} exf4 {[%emt 0:03:46]} 26. Qxb5 {[%emt 0:00:05]} Rd8 $2 {[%emt 0:01:50]} (26... Rc8 $16 {keeps fighting.}) 27. Rde1 {[%emt 0:00:57]} (27. a4 $142 Rd5 28. Rhe1 Rxb5 29. Rxe4 Rxg5 30. b4) 27... Rd5 $18 {[%emt 0:04:53]} 28. Rxe4 {[%emt 0:16:38]} Rxb5 {[%emt 0:00:01]} 29. Rg1 {[%emt 0:02:50]} f3 {[%emt 0:03:41] [#]} (29... f6 $16 {was worth a try.}) 30. Re3 $1 $18 {[%emt 0:00:20]} f2 {[%emt 0:04:03]} 31. Rf1 {[%emt 0:00:04]} Rxg5 {[%emt 0:00:03]} 32. Rf3 $1 {[%emt 0:00:06]} f5 {[%emt 0:00:39]} 33. R3xf2 {[%emt 0:00:13]} (33. R1xf2 e5 34. a4 e4 $18) 33... f4 {[%emt 0:00:50]} 34. a4 {[%emt 0:00:41]} Rf5 $2 {[%emt 0:04:26]} (34... Ra5 {was called for.} 35. c4 g5) 35. b4 $18 {[%emt 0:02:26]} e5 {[%emt 0:02:47]} 36. Re1 {[%emt 0:00:50]} Nf6 {[%emt 0:00:18]} 37. b5 {[%emt 0:00:31]} e4 {[%emt 0:01:30]} 38. c4 {[%emt 0:03:50]} e3 {[%emt 0:01:15]} 39. Rc2 {[%emt 0:00:41]} Nd7 $2 {[%emt 0:01:05]} (39... Re5) 40. a5 $18 {[%emt 0:00:31]} Re5 {[%emt 0:06:15]} 41. a6 {[%emt 0:01:30]} f3 {[%emt 0:00:54]} 42. a7 {[%emt 0:02:35]} f2 {[%emt 0:00:48]} 43. Rf1 {[%emt 0:00:10]} (43. a8=R {gets mated.} fxe1=Q+ (43... fxe1=B $2 44. Ra7 $17) 44. Ka2 e2 45. Rd8 Qa5+ 46. Kb2 Qb4+ (46... e1=B $2 47. Rxd7+ Kf6 48. Rd6+ Re6 49. Rd3 $19) (46... Qxd8 {leads to mate.} 47. Rd2 e1=Q 48. Rh2) 47. Ka2 Nc5 (47... e1=B $2 48. Rxd7+ Re7 49. Rxe7+ Qxe7 50. Kb1 $19) (47... Qa5+ 48. Kb2 Qxd8 49. Rd2 e1=Q 50. Rg2 Re2+ 51. Rxe2 Qxe2+ 52. Kb3 Qa5 53. c5 Nxc5#) (47... e1=Q {is a self mate.} 48. Rxd7+ Re7 49. Rxe7+ Qexe7 50. b6 Qa3+ 51. Kb1 Qe1+ 52. Rc1 Qexc1#) 48. Rc1 Qb3+ (48... e1=R 49. Rd7+ Nxd7 50. Rxe1 Rxe1 51. c5 Re2+ 52. Ka1 Qe1#) 49. Ka1 e1=Q (49... e1=R 50. Rdd1 R5e2 51. Rd7+ Nxd7 52. Rxe1 Rxe1#) (49... e1=R 50. Rdd1 Nd3 51. Rc2 Rxd1+ 52. Rc1 Rxc1#)) (43. Rd1 Nb6 (43... e2 $2 44. Rxe2 Rxe2 45. a8=Q $18) 44. Re2 Rg5 $11) 43... Nb6 {[%emt 0:02:53]} 44. c5 {[%emt 0:00:05]} Na8 {[%emt 0:04:25]} 45. b6 {[%emt 0:00:33]} Re7 {[%emt 0:00:30]} 46. Kc1 {[%emt 0:01:43]} (46. Re2 $142 Kf7 47. Kc2 Rxa7 48. bxa7 Kf6 49. Rxe3 Kg5 50. Rxf2 Kh5 51. Rg3) 46... g5 {[%emt 0:00:44]} 47. Kd1 {[%emt 0:00:11]} g4 {[%emt 0:00:03]} 48. Ke2 {[%emt 0:00:05]} Kf6 {[%emt 0:00:39]} 49. Rc3 {[%emt 0:00:28]} 1-0

[Event "2nd Cambridge Open 2024"]
[Site "Cambridge"]
[Date "2024.02.23"]
[Round "7.4"]
[White "Gourlay, Iain"]
[Black "Ghasi, Ameet K"]
[Result "1-0"]
[ECO "A49"]
[WhiteElo "2301"]
[BlackElo "2509"]
[Annotator "TA"]
[PlyCount "92"]
[EventDate "2024.02.18"]
[EventType "swiss"]
[EventCountry "ENG"]
[SourceTitle "playchess.com"]
[Source "ChessBase"]
[SourceQuality "1"]
[TimeControl "5400+30"]

{[%evp 16,92,12,4,22,25,25,31,15,20,15,22,52,28,27,34,40,43,75,77,60,72,79,77,125,123,138,93,110,110,90,90,109,95,120,106,112,121,356,341,347,338,317,310,275,267,264,242,251,267,302,316,487,489,495,498,483,494,560,562,598,597,702,692,820,817,823,766,904,897,6070,6070,5265,5218,4926,2283,5210,5206,29994]} 1. Nf3 {[%emt 0:09:26]} Nf6 {[%emt 0:00:26]} 2. g3 {[%emt 0:00:23]} g6 {[%emt 0:00:09]} 3. Bg2 {[%emt 0:00:45]} Bg7 {[%emt 0:00:02]} 4. O-O {[%emt 0:00:13]} O-O {[%emt 0:00:08]} 5. d4 {[%emt 0:00:17]} d6 {[%emt 0:00:27][%cal Bd7d6,Bd6d5][%mdl 32]} 6. b3 {[%emt 0:00:43]} c5 {[%emt 0:08:08]} 7. Bb2 {[%emt 0:01:18]} cxd4 {[%emt 0:03:45]} 8. Nxd4 {[%emt 0:00:12]} d5 {[%emt 0:00:16]} 9. c4 {[%emt 0:00:50]} e5 {[%emt 0:07:28][%cal Be7e5,Be5e4][%mdl 32]} 10. Nf3 {[%emt 0:00:23]} e4 {[%emt 0:03:18]} 11. Nd4 {[%emt 0:00:10]} dxc4 {[%emt 0:10:48] White is slightly better.} 12. Nd2 {[%emt 0:01:09]} c3 {[%emt 0:25:07]} 13. Bxc3 {[%emt 0:00:21]} e3 {[%emt 0:13:53]} 14. Nc4 {[%emt 0:02:50]} exf2+ {[%emt 0:00:24]} 15. Rxf2 {[%emt 0:00:25]} Ng4 {[%emt 0:00:04]} 16. Rf4 {[%emt 0:06:47]} Na6 {[%emt 0:05:09]} 17. Nb5 {[%emt 0:12:59]} Bxc3 {[%emt 0:02:43]} 18. Nxc3 {[%emt 0:01:56]} Nc7 {[%emt 0:03:27]} 19. Qd6 {[%emt 0:11:58]} Nh6 {[%emt 0:08:25]} ({Better is} 19... Qxd6 20. Nxd6 Ne3) 20. Rd1 $16 {[%emt 0:08:23] White has more active pieces.} Ne6 {[%emt 0:00:44]} 21. Qe5 {[%emt 0:04:40] Against Qxd6} Qg5 {[%emt 0:00:02]} 22. Qxg5 {[%emt 0:06:04]} Nxg5 {[%emt 0:00:02] Black is weak on the dark squares} 23. Nd6 {[%emt 0:04:11][%cal Of4a4]} Rb8 {[%emt 0:02:29]} 24. Rc4 {[%emt 0:05:12]} b6 {[%emt 0:00:50]} 25. Rc7 $36 {[%emt 0:02:07][%cal Oc3d5][%mdl 2048] Keeping Black busy.} a5 {[%emt 0:00:46]} 26. Nd5 {[%emt 0:01:29]} Ba6 {[%emt 0:00:09] Black cannot hold the game after this.} (26... Bg4 $16 27. Rd2 Kg7) 27. Nf6+ $18 {[%emt 0:01:48]} Kg7 {[%emt 0:00:05]} 28. Nd7 {[%emt 0:00:19][%csl LRb8,LRf8]} Bxe2 {[%emt 0:03:28]} 29. Re1 {[%emt 0:02:10]} Ne6 {[%emt 0:01:04]} 30. Ra7 {[%emt 0:00:22]} Nd4 {[%emt 0:00:06]} 31. Nxb8 {[%emt 0:01:27]} Rxb8 {[%emt 0:00:01]} 32. Rc1 {[%emt 0:07:52]} Bg4 {[%emt 0:01:37] [#] Hoping for ...Ne2+.} 33. Rc4 {[%emt 0:01:38]} Nf3+ {[%emt 0:00:10]} (33... Ndf5 {keeps fighting.}) 34. Bxf3 {[%emt 0:00:29] White is clearly winning.} Bxf3 {[%emt 0:00:01]} 35. Rc8 {[%emt 0:00:43]} Rxc8 {[%emt 0:00:01]} 36. Nxc8 {[%emt 0:00:07][%mdl 4096] Endgame. KRN-KBN} b5 {[%emt 0:01:38]} 37. Rxa5 {[%emt 0:00:21]} Be2 {[%emt 0:00:13]} 38. Nd6 {[%emt 0:00:25]} f5 {[%emt 0:00:17]} 39. Nxb5 {[%emt 0:00:36]} g5 {[%emt 0:00:04]} 40. Nd4 {[%emt 0:00:59][%csl LRe2,LRf5]} Bd3 {[%emt 0:00:01]} 41. b4 {[%emt 0:00:29][%cal Bb3b4,Bb4b5,Bb5b6,Bb6b7][%mdl 32]} Kf6 {[%emt 0:00:11]} 42. b5 {[%emt 0:00:42] [#] Strongly threatening Ra6+.} Ke5 {[%emt 0:00:04]} 43. b6+ {[%emt 0:01:29]} Kd6 {[%emt 0:00:03]} 44. Ra7 {[%emt 0:00:35]} Be4 {[%emt 0:00:36] Prevents b7.} 45. Rxh7 {[%emt 0:00:27]} Ng4 {[%emt 0:00:03]} 46. b7 {[%emt 0:00:24]} Kd5 {[%emt 0:04:38] Weighted Error Value: White=0.04 (flawless) /Black=0.35.  Loses game:     	---       	Black=1      Mistake:       	---       	Black=2      Inaccurate:     	White=1     	Black=2      OK:         	White=19    	Black=11     Best:        	White=1     	Black=1} 1-0